bitfinex/quotes_BTCUSD_20250624
["timestamp","ask_amount","ask_price","bid_price","bid_amount"]
[1750790015565,1.23671643,105890.0,105880.0,0.0034]
[1750790016005,1.2367207,105890.0,105880.0,0.0034]
[1750790017542,1.23673118,105890.0,105880.0,0.0034]
[1750790017948,1.4635321,105890.0,105880.0,0.0034]
[1750790019858,1.4479321,105890.0,105880.0,0.0034]
[1750790020509,1.44793203,105890.0,105880.0,0.0034]
[1750790020936,1.44793152,105890.0,105880.0,0.0034]
[1750790021996,1.53166214,105890.0,105880.0,0.0034]
[1750790022198,1.44793152,105890.0,105880.0,0.0034]
[1750790023294,1.44133823,105890.0,105880.0,0.0034]
[1750790023500,1.44793239,105890.0,105880.0,0.0034]
[1750790026348,1.44793235,105890.0,105880.0,0.0034]
[1750790028506,0.69333278,105880.0,105870.0,0.0004]
[1750790028709,1.39061352,105880.0,105870.0,0.0004]
[1750790028853,1.42826182,105880.0,105870.0,0.0004]
[1750790029498,1.47826182,105880.0,105870.0,0.0004]
[1750790029707,1.4831887,105880.0,105870.0,0.0004]
[1750790030214,1.4851887,105880.0,105870.0,0.0014]
[1750790030424,1.45705787,105880.0,105870.0,0.0014]
[1750790030640,1.54078849,105880.0,105870.0,0.0014]
[1750790030854,0.66780713,105870.0,105860.0,0.002]
[1750790031071,1.0712677,105870.0,105860.0,0.002]
[1750790031512,1.1496577,105870.0,105860.0,0.002]
[1750790031939,1.1773666,105870.0,105860.0,0.002]
[1750790032181,1.1773666,105870.0,105860.0,0.00245839]
[1750790032395,1.2323666,105870.0,105860.0,0.00245839]
[1750790033075,1.04466311,105860.0,105850.0,0.0004]
[1750790033304,1.38443351,105860.0,105850.0,0.0004]
[1750790033524,1.28502351,105860.0,105850.0,0.0004]
[1750790033754,1.31312545,105860.0,105850.0,0.0004]
[1750790034662,1.309532,105860.0,105850.0,0.0004]
[1750790034877,1.30110464,105860.0,105850.0,0.0004]
[1750790035079,1.2575027,105860.0,105850.0,0.0004]
[1750790035490,1.2575029,105860.0,105850.0,0.0004]
[1750790036569,1.26147803,105860.0,105850.0,0.0014]
[1750790037204,1.27647803,105860.0,105850.0,0.0014]
[1750790037435,1.34247803,105860.0,105850.0,0.0014]
[1750790037643,1.34246883,105860.0,105850.0,0.0014]
[1750790038769,1.32646883,105860.0,105850.0,0.0014]
[1750790038993,1.31146883,105860.0,105850.0,0.0014]
[1750790040510,1.31145481,105860.0,105850.0,0.0014]
[1750790041055,1.26145481,105860.0,105850.0,0.0014]
[1750790041270,1.31145481,105860.0,105850.0,0.0014]
[1750790042550,1.33984881,105860.0,105850.0,0.0014]
[1750790043324,1.33985228,105860.0,105850.0,0.0014]
[1750790043742,1.43933228,105860.0,105850.0,0.0014]
[1750790045185,1.44426649,105860.0,105850.0,0.0014]
[1750790045633,1.44426362,105860.0,105850.0,0.0014]
[1750790045860,1.45976362,105860.0,105850.0,0.0014]
[1750790046077,1.45319528,105860.0,105850.0,0.0014]
[1750790046292,1.45319528,105860.0,105830.0,0.0004]
[1750790046293,0.55295336,105840.0,105830.0,0.0308]
[1750790046502,1.03169522,105840.0,105830.0,0.0004]
[1750790046704,1.09353245,105840.0,105830.0,0.0004]
[1750790046822,1.12192945,105840.0,105830.0,0.0004]
[1750790047436,1.57140945,105840.0,105830.0,0.0004]
[1750790047648,1.61031048,105840.0,105830.0,0.0024]
[1750790048023,1.65007024,105840.0,105830.0,0.0024]
[1750790049155,1.65006932,105840.0,105830.0,0.0024]
[1750790049337,1.64906932,105840.0,105830.0,0.0004]
[1750790049759,1.66106932,105840.0,105830.0,0.0004]
[1750790049966,1.65406932,105840.0,105830.0,0.0004]
[1750790050184,0.55297211,105830.0,105820.0,0.0174]
[1750790050392,0.9078712,105830.0,105820.0,0.0174]
[1750790050664,0.9578712,105830.0,105820.0,0.0024]
[1750790051089,0.9078712,105830.0,105820.0,0.0024]
[1750790051313,0.87668666,105830.0,105820.0,0.0346]
[1750790051536,0.87668666,105830.0,105820.0,0.03464616]
[1750790052299,0.87968666,105830.0,105820.0,0.01804616]
[1750790053117,0.89124289,105830.0,105820.0,0.01804616]
[1750790053971,0.89124289,105830.0,105820.0,0.03454616]
[1750790054208,0.89124289,105830.0,105820.0,0.01804616]
[1750790054424,0.89124289,105830.0,105820.0,0.00244616]
[1750790054652,0.89124289,105830.0,105820.0,0.01794616]
[1750790054870,0.91363181,105830.0,105820.0,0.01794616]
[1750790056356,0.93157781,105830.0,105820.0,0.01794616]
[1750790056816,0.94908297,105830.0,105820.0,0.00244616]
[1750790057257,0.94908296,105830.0,105820.0,0.00244616]
[1750790057472,0.75152296,105830.0,105820.0,0.03384616]
[1750790057703,0.93158612,105830.0,105820.0,0.03384616]
[1750790058647,1.03106612,105830.0,105820.0,0.03384616]
[1750790058844,1.04858431,105830.0,105820.0,0.03384616]
[1750790059112,1.04858431,105830.0,105820.0,0.01814616]
[1750790059754,1.04858431,105830.0,105820.0,0.00244616]
[1750790059914,1.07668625,105830.0,105820.0,0.00244616]
[1750790060120,1.10787079,105830.0,105820.0,0.00244616]
[1750790060325,1.10787068,105830.0,105820.0,0.00244616]
[1750790060527,1.10787496,105830.0,105820.0,0.00244616]
[1750790060788,1.15787496,105830.0,105820.0,0.00244616]
[1750790061290,1.15788492,105830.0,105820.0,0.00244616]
[1750790062370,1.24161554,105830.0,105820.0,0.00244616]
[1750790062584,1.15788492,105830.0,105820.0,0.00244616]
[1750790062786,1.17348492,105830.0,105820.0,0.00244616]
[1750790063559,1.17348727,105830.0,105820.0,0.00244616]
[1750790065186,1.21113557,105830.0,105820.0,0.00244616]
[1750790065620,0.6836554,105820.0,105810.0,0.0165]
[1750790065825,0.6836554,105820.0,105810.0,0.0318]
[1750790065826,0.98204539,105820.0,105810.0,0.0318]
[1750790066053,1.01269808,105820.0,105810.0,0.0318]
[1750790066261,1.04110108,105820.0,105810.0,0.0318]
[1750790066478,1.04110346,105820.0,105810.0,0.0318]
[1750790067086,1.04310346,105820.0,105810.0,0.0318]
[1750790067501,1.04610346,105820.0,105810.0,0.0318]
[1750790068691,1.05463869,105820.0,105810.0,0.0318]
[1750790069273,1.054641,105820.0,105810.0,0.0318]
[1750790070089,1.03225208,105820.0,105810.0,0.0318]
[1750790070257,1.05469507,105820.0,105810.0,0.0165]
[1750790070684,0.19846877,105810.0,105800.0,0.0177]
[1750790070885,0.49692416,105810.0,105800.0,0.01783851]
[1750790071140,0.5281087,105810.0,105800.0,0.01783851]
[1750790071343,0.5459477,105810.0,105800.0,0.03333851]
[1750790071502,0.57477167,105810.0,105800.0,0.03333851]
[1750790071713,0.57577167,105810.0,105800.0,0.03333851]
[1750790071910,0.57677167,105810.0,105800.0,0.03433851]
[1750790072338,0.3891973,105810.0,105800.0,0.03433851]
[1750790072557,0.95801672,105810.0,105800.0,0.03433851]
[1750790072760,0.95143835,105810.0,105800.0,0.03433851]
[1750790072919,0.95801662,105810.0,105800.0,0.03433851]
[1750790073738,0.72920393,105810.0,105800.0,0.03433851]
[1750790073944,0.92753851,105810.0,105800.0,0.03433851]
[1750790075090,0.9581912,105810.0,105800.0,0.03433851]
[1750790076240,0.97273205,105810.0,105800.0,0.03433851]
[1750790076640,0.97273149,105810.0,105800.0,0.03433851]
[1750790078092,0.74377338,105810.0,105800.0,0.03433851]
[1750790078296,0.94229338,105810.0,105800.0,0.03433851]
[1750790078670,1.04177338,105810.0,105800.0,0.03433851]
[1750790079992,0.74377338,105810.0,105800.0,0.03433851]
[1750790080205,0.94233338,105810.0,105800.0,0.03433851]
[1750790080416,0.91350941,105810.0,105800.0,0.03433851]
[1750790080617,0.71494941,105810.0,105800.0,0.03433851]
[1750790080794,0.88944044,105810.0,105800.0,0.03433851]
[1750790081067,0.91359223,105810.0,105800.0,0.03433851]
[1750790081274,0.69738729,105810.0,105800.0,0.03433851]
[1750790081526,0.89606729,105810.0,105800.0,0.03433851]
[1750790082244,0.69738729,105810.0,105800.0,0.03433851]
[1750790082452,0.89606729,105810.0,105800.0,0.03433851]
[1750790082720,0.68284644,105810.0,105800.0,0.03433851]
[1750790082928,0.85907648,105810.0,105800.0,0.03433851]
[1750790083139,0.87361733,105810.0,105800.0,0.03433851]
[1750790083847,0.86703048,105810.0,105800.0,0.03433851]
[1750790084298,0.86203048,105810.0,105800.0,0.03433851]
[1750790085183,0.66335048,105810.0,105800.0,0.03433851]
[1750790085415,0.86203048,105810.0,105800.0,0.03433851]
[1750790088375,0.86195048,105810.0,105800.0,0.03433851]
[1750790091027,0.84740963,105810.0,105800.0,0.03433851]
[1750790092828,0.84732963,105810.0,105800.0,0.03433851]
[1750790093038,0.69000963,105810.0,105800.0,0.07055875]
[1750790093259,0.84732963,105810.0,105800.0,0.07055875]
[1750790094773,0.84732963,105810.0,105800.0,0.03433851]
[1750790096879,0.64880963,105810.0,105800.0,0.03433851]
[1750790097101,0.64880963,105810.0,105800.0,0.36180235]
[1750790097102,0.46640963,105810.0,105800.0,0.36180235]
[1750790097319,0.30880963,105810.0,105800.0,0.36180235]
[1750790097534,0.53857063,105810.0,105800.0,0.36180235]
[1750790097953,0.53857063,105810.0,105800.0,0.39802259]
[1750790098160,0.53857063,105810.0,105800.0,0.07055875]
[1750790098370,0.53857063,105810.0,105800.0,0.36180235]
[1750790098628,0.30437021,105810.0,105800.0,0.56029005]
[1750790098844,0.46197021,105810.0,105800.0,0.56974175]
[1750790099053,0.46197021,105810.0,105800.0,0.57919336]
[1750790099261,0.46097021,105810.0,105800.0,0.57819336]
[1750790099479,0.46097021,105810.0,105800.0,0.58764488]
[1750790099690,0.27395216,105810.0,105800.0,0.6767513]
[1750790099940,0.26450135,105810.0,105800.0,0.64839656]
[1750790100170,0.46197021,105810.0,105800.0,0.63894504]
[1750790100380,0.27295216,105810.0,105800.0,0.6578479]
[1750790100588,0.27295216,105810.0,105800.0,0.64839656]
[1750790100797,0.46197021,105810.0,105800.0,0.63894504]
[1750790100999,0.46197021,105810.0,105800.0,0.62949325]
[1750790101433,0.46197021,105810.0,105800.0,0.63149325]
[1750790101641,0.46197021,105810.0,105800.0,0.64094495]
[1750790101849,0.46197021,105810.0,105800.0,0.64094504]
[1750790102266,0.46197021,105810.0,105800.0,0.65039674]
[1750790103128,0.27295216,105810.0,105800.0,0.66929951]
[1750790103342,0.25905036,105810.0,105800.0,0.67875068]
[1750790103552,0.28740198,105810.0,105800.0,0.65984817]
[1750790103766,0.47642003,105810.0,105800.0,0.65984817]
[1750790104202,0.12980198,105810.0,105800.0,0.65984817]
[1750790104408,0.11090045,105810.0,105800.0,0.66929951]
[1750790104621,0.1203509,105810.0,105800.0,0.67875068]
[1750790104831,0.13925225,105810.0,105800.0,0.67875076]
[1750790105145,0.12980144,105810.0,105800.0,0.35128692]
[1750790105382,0.31882075,105810.0,105800.0,0.65039674]
[1750790105795,0.31882075,105810.0,105800.0,0.65984835]
[1750790106116,0.31882075,105810.0,105800.0,0.66929987]
[1750790106391,0.1298027,105810.0,105800.0,0.66929987]
[1750790106591,0.12035171,105810.0,105800.0,0.67875059]
[1750790106796,0.10145018,105810.0,105800.0,0.67875059]
[1750790107223,0.10145018,105810.0,105800.0,1.34721443]
[1750790107224,0.092,105810.0,105800.0,1.34721443]
[1750790107433,0.02834894,105820.0,105810.0,0.24917003]
[1750790107643,0.02834877,105820.0,105810.0,1.00901802]
[1750790107853,0.21734895,105820.0,105810.0,0.99956775]
[1750790108063,0.03779869,105820.0,105810.0,1.0090182]
[1750790108272,0.03779869,105820.0,105810.0,0.99956775]
[1750790108688,0.22679887,105820.0,105810.0,0.98066658]
[1750790108906,0.21834949,105820.0,105810.0,0.99511739]
[1750790109121,0.60105062,105850.0,105840.0,0.0289]
[1750790109122,0.19094662,105850.0,105840.0,0.0289]
[1750790109336,0.28644848,105850.0,105840.0,0.38051294]
[1750790109548,0.28644848,105850.0,105840.0,0.38648474]
[1750790109976,0.28644848,105850.0,105840.0,0.0590209]
[1750790110435,0.28790944,105850.0,105840.0,0.0620209]
[1750790111088,0.28790944,105850.0,105840.0,0.06438268]
[1750790112428,0.44610944,105850.0,105840.0,0.06538268]
[1750790112640,0.44610944,105850.0,105840.0,0.0630209]
[1750790112902,0.44610944,105850.0,105840.0,0.06538268]
[1750790113999,0.44610944,105850.0,105840.0,0.0630209]
[1750790114218,0.44610944,105850.0,105840.0,0.06538268]
[1750790114433,0.44610944,105850.0,105840.0,0.0630209]
[1750790116407,0.44610944,105850.0,105840.0,0.06538268]
[1750790116636,0.44610944,105850.0,105840.0,0.0341209]
[1750790116876,0.46190944,105850.0,105840.0,0.004]
[1750790120457,0.44610944,105850.0,105840.0,0.004]
[1750790120930,0.44610944,105850.0,105840.0,0.33146384]
[1750790121372,0.44610944,105850.0,105840.0,0.0201]
[1750790122276,0.44610944,105850.0,105840.0,0.004]
[1750790124210,0.53610944,105850.0,105840.0,0.004]
[1750790124643,0.55150944,105850.0,105840.0,0.004]
[1750790125081,0.56730944,105850.0,105840.0,0.004]
[1750790127293,0.59569644,105850.0,105840.0,0.004]
[1750790134797,0.93569644,105850.0,105840.0,0.004]
[1750790138458,0.98088998,105850.0,105840.0,0.004]
[1750790138661,1.01385906,105850.0,105840.0,0.004]
[1750790138866,1.03635967,105850.0,105840.0,0.004]
[1750790139274,1.05635434,105850.0,105840.0,0.004]
[1750790139491,1.06513653,105850.0,105840.0,0.004]
[1750790140112,0.20791922,105810.0,105800.0,0.13066499]
[1750790140349,0.46126108,105810.0,105800.0,0.05201]
[1750790141391,0.46126108,105810.0,105800.0,0.05214851]
[1750790141774,0.46126108,105810.0,105800.0,0.05514851]
[1750790143400,0.46126108,105810.0,105800.0,0.0639275]
[1750790144744,0.46226108,105810.0,105800.0,0.0669275]
[1750790144955,0.46226108,105810.0,105800.0,0.44428371]
[1750790145711,0.30442108,105810.0,105800.0,0.44428371]
[1750790145960,0.46206108,105810.0,105800.0,0.44428371]
[1750790146771,0.46206108,105810.0,105800.0,0.42537371]
[1750790148020,0.46214108,105810.0,105800.0,0.42537371]
[1750790148684,0.46214108,105810.0,105800.0,0.09790987]
[1750790148899,0.46214108,105810.0,105800.0,0.42773632]
[1750790149114,0.46214108,105810.0,105800.0,0.42537371]
[1750790151043,0.30442108,105810.0,105800.0,0.61440962]
[1750790151252,0.36647922,105810.0,105800.0,0.62386141]
[1750790151469,0.35702877,105810.0,105800.0,0.61440962]
[1750790152120,0.19946877,105810.0,105800.0,0.61440962]
[1750790152338,0.35694877,105810.0,105800.0,0.62386141]
[1750790152538,0.35694877,105810.0,105800.0,0.63331311]
[1750790152951,0.36635958,105810.0,105800.0,0.64276463]
[1750790153182,0.37581003,105810.0,105800.0,0.65221606]
[1750790154948,0.21837003,105810.0,105800.0,0.65221606]
[1750790155354,0.22782093,105810.0,105800.0,0.6616674]
[1750790155795,0.01045018,105810.0,105800.0,0.98913062]
[1750790156246,0.02935108,105810.0,105800.0,0.98913062]
[1750790156462,0.23727066,105810.0,105800.0,0.61440962]
[1750790156678,0.21837012,105810.0,105800.0,0.63331275]
[1750790156889,0.21837012,105810.0,105800.0,0.65222275]
[1750790157096,0.01990117,105810.0,105800.0,0.66167409]
[1750790157327,0.02935198,105810.0,105800.0,0.66167409]
[1750790157553,0.22782093,105810.0,105800.0,0.70363418]
[1750790157768,0.22782093,105810.0,105800.0,0.70363427]
[1750790159141,0.22782093,105810.0,105800.0,0.69418284]
[1750790159447,0.22782093,105810.0,105800.0,0.70363427]
[1750790160295,0.22782093,105810.0,105800.0,0.71308561]
[1750790161206,0.02935198,105810.0,105800.0,0.72253686]
[1750790161426,0.02935198,105810.0,105800.0,0.71308561]
[1750790161633,0.03880288,105810.0,105800.0,0.71308561]
[1750790162669,0.22782093,105810.0,105800.0,0.70363427]
[1750790162889,0.03880288,105810.0,105800.0,0.70363427]
[1750790163098,0.02935198,105810.0,105800.0,0.72253669]
[1750790163303,0.02935198,105810.0,105800.0,0.71308552]
[1750790163508,0.02935198,105810.0,105800.0,0.71308561]
[1750790163705,0.03880288,105810.0,105800.0,0.71308561]
[1750790164345,0.22782093,105810.0,105800.0,0.71308561]
[1750790165369,0.22782093,105810.0,105800.0,0.70363427]
[1750790166229,0.02935198,105810.0,105800.0,0.71308552]
[1750790167793,0.21837003,105810.0,105800.0,0.70363427]
[1750790168199,0.22782093,105810.0,105800.0,0.71308561]
[1750790168397,0.03880288,105810.0,105800.0,0.71308561]
[1750790169621,0.02935198,105810.0,105800.0,0.72253686]
[1750790170270,0.22782093,105810.0,105800.0,0.71308561]
[1750790171211,0.22782093,105810.0,105800.0,0.70363427]
[1750790171612,0.22782093,105810.0,105800.0,0.71308561]
[1750790172012,0.22782093,105810.0,105800.0,0.79977132]
[1750790172239,0.21837039,105810.0,105800.0,0.81867445]
[1750790173021,0.19001805,105810.0,105800.0,0.08611987]
[1750790173226,0.19001805,105810.0,105800.0,0.41358371]
[1750790173227,0.22031805,105810.0,105800.0,0.41358371]
[1750790173440,0.37723805,105810.0,105800.0,0.41358371]
[1750790176832,0.36193805,105810.0,105800.0,0.60261962]
[1750790177044,0.34693805,105810.0,105800.0,0.60261962]
[1750790177460,0.19001805,105810.0,105800.0,0.60261962]
[1750790177663,0.19001805,105810.0,105800.0,0.61207141]
[1750790177905,0.19001805,105810.0,105800.0,0.60261962]
[1750790178106,0.20891922,105810.0,105800.0,0.64297132]
[1750790178311,0.20891922,105810.0,105800.0,0.79055962]
[1750790178516,0.20891922,105810.0,105800.0,0.80946311]
[1750790179492,0.20891922,105810.0,105800.0,0.81891472]
[1750790179899,0.20891922,105810.0,105800.0,0.80946311]
[1750790180099,0.20891922,105810.0,105800.0,0.80381472]
[1750790180322,0.01990117,105810.0,105800.0,0.82836606]
[1750790180525,0.21837012,105810.0,105800.0,0.81891472]
[1750790180750,0.21837012,105810.0,105800.0,0.82836624]
[1750790180962,0.02935207,105810.0,105800.0,0.83781749]
[1750790181153,0.01990117,105810.0,105800.0,0.83781687]
[1750790181354,0.02935198,105810.0,105800.0,0.8283657]
[1750790181793,0.21837003,105810.0,105800.0,0.81891445]
[1750790181937,0.22782093,105810.0,105800.0,0.80946293]
[1750790182140,0.22782093,105810.0,105800.0,0.80941052]
[1750790182729,0.22782093,105810.0,105800.0,0.79995891]
[1750790183134,0.22782093,105810.0,105800.0,0.81886195]
[1750790183346,0.21837003,105810.0,105800.0,0.48194668]
[1750790183558,0.21837003,105810.0,105800.0,0.79995891]
[1750790184546,0.21837003,105810.0,105800.0,0.80941043]
[1750790184840,0.21837003,105810.0,105800.0,0.79050721]
[1750790185035,0.21837003,105810.0,105800.0,0.784859]
[1750790185466,0.21837003,105810.0,105800.0,0.80376231]
[1750790185878,0.21837003,105810.0,105800.0,0.7943107]
[1750790186220,0.20891958,105810.0,105800.0,0.7943107]
[1750790187231,0.20891958,105810.0,105800.0,0.7785107]
[1750790187651,0.20891958,105810.0,105800.0,0.78796231]
[1750790187858,0.20891958,105810.0,105800.0,0.82791374]
[1750790188106,0.20891958,105810.0,105800.0,0.82791383]
[1750790188296,0.20891958,105810.0,105800.0,0.83736526]
[1750790189141,0.20891958,105810.0,105800.0,0.81846231]
[1750790189347,0.20891958,105810.0,105800.0,0.82791383]
[1750790189950,0.01990153,105810.0,105800.0,0.83736526]
[1750790190165,0.01990153,105810.0,105800.0,0.83736481]
[1750790190581,0.01990117,105810.0,105800.0,0.83736481]
[1750790190740,0.001,105810.0,105800.0,1.16482812]
[1750790190978,0.01045027,105810.0,105800.0,1.16482812]
[1750790191184,0.001,105810.0,105800.0,1.16482812]
[1750790192095,0.22211647,105840.0,105820.0,0.21734895]
[1750790192298,0.21732851,105830.0,105820.0,0.23467625]
[1750790192579,0.22447993,105830.0,105820.0,0.23467625]
[1750790192806,0.22447993,105830.0,105820.0,0.24412625]
[1750790193003,0.22447993,105830.0,105820.0,0.25357608]
[1750790193408,0.22547993,105830.0,105820.0,0.58403992]
[1750790194209,0.22547993,105830.0,105820.0,0.58404001]
[1750790194410,0.22547993,105830.0,105820.0,0.59348984]
[1750790195044,0.22547993,105830.0,105820.0,0.57459009]
[1750790195564,0.22547993,105830.0,105820.0,0.59348984]
[1750790195773,0.22547993,105830.0,105820.0,0.58404001]
[1750790195989,0.22547993,105830.0,105820.0,0.59348984]
[1750790196200,0.23492904,105830.0,105820.0,0.60293958]
[1750790196463,0.21832904,105830.0,105820.0,0.60393958]
[1750790196676,0.21832904,105830.0,105820.0,0.61338923]
[1750790196893,0.21832904,105830.0,105820.0,0.59448984]
[1750790197716,0.21832904,105830.0,105820.0,0.60393958]
[1750790197945,0.21832904,105830.0,105820.0,0.59448984]
[1750790198160,0.21832904,105830.0,105820.0,0.60393958]
[1750790198362,0.21832904,105830.0,105820.0,0.59448984]
[1750790198598,0.21832904,105830.0,105820.0,0.60393958]
[1750790198806,0.001,105830.0,105820.0,1.12993245]
[1750790199020,0.02934564,105830.0,105820.0,0.80246861]
[1750790199229,0.03879466,105830.0,105820.0,0.80246861]
[1750790200596,0.03879457,105830.0,105820.0,0.80246861]
[1750790200815,0.03879457,105830.0,105820.0,0.84386861]
[1750790201033,0.2277769,105830.0,105820.0,0.83441923]
[1750790201252,0.2277769,105830.0,105820.0,0.81801923]
[1750790201451,0.2277769,105830.0,105820.0,0.82746879]
[1750790201706,0.23722592,105830.0,105820.0,0.82746834]
[1750790202206,0.23722663,105830.0,105820.0,0.82746834]
[1750790202411,0.22777814,105830.0,105820.0,0.82746834]
[1750790202623,0.0293467,105830.0,105820.0,0.82746834]
[1750790202813,0.0293467,105830.0,105820.0,0.82746789]
[1750790203478,0.22777814,105830.0,105820.0,0.82746789]
[1750790203916,0.03879581,105830.0,105820.0,0.82746789]
[1750790204337,0.0293467,105830.0,105820.0,0.82746789]
[1750790204547,0.01989768,105830.0,105820.0,0.82746789]
[1750790204756,0.0293467,105830.0,105820.0,0.84386789]
[1750790204966,0.01989724,105830.0,105820.0,0.84386789]
[1750790205191,0.01989716,105830.0,105820.0,0.84386789]
[1750790205412,0.01989716,105830.0,105820.0,1.66133173]
[1750790205413,0.001,105830.0,105820.0,1.66133173]
[1750790205636,0.00944768,105840.0,105830.0,0.22386241]
[1750790205847,0.22675627,105840.0,105830.0,0.97426021]
[1750790206063,0.22675627,105840.0,105830.0,0.95826021]
[1750790206274,0.0377918,105840.0,105830.0,0.97715754]
[1750790206491,0.22675627,105840.0,105830.0,0.96770896]
[1750790206697,0.0377918,105840.0,105830.0,0.97715754]
[1750790207555,0.22675681,105840.0,105830.0,0.96770896]
[1750790207791,0.21730886,105840.0,105830.0,0.63079637]
[1750790207998,0.20786082,105840.0,105830.0,0.63179655]
[1750790208218,0.20786082,105840.0,105830.0,0.64124539]
[1750790208652,0.20786082,105840.0,105830.0,0.62234762]
[1750790208860,0.20786082,105840.0,105830.0,0.63179655]
[1750790209084,0.20786082,105840.0,105830.0,0.63279655]
[1750790209291,0.20786082,105840.0,105830.0,0.64224539]
[1750790209504,0.20786082,105840.0,105830.0,0.65169406]
[1750790209729,0.20786082,105840.0,105830.0,0.9791579]
[1750790209946,0.00944786,105840.0,105830.0,0.66114264]
[1750790210160,0.01889545,105840.0,105830.0,1.00450595]
[1750790210378,0.02834358,105840.0,105830.0,0.99505746]
[1750790210586,0.02834349,105840.0,105830.0,1.00450595]
[1750790211026,0.0283434,105840.0,105830.0,1.00450595]
[1750790211233,0.01889545,105840.0,105830.0,1.00450595]
[1750790211447,0.02834349,105840.0,105830.0,1.00450595]
[1750790211710,0.21730796,105840.0,105830.0,0.63279637]
[1750790211935,0.21730796,105840.0,105830.0,0.62334753]
[1750790212158,0.23310796,105840.0,105830.0,0.65170637]
[1750790213258,0.23310796,105840.0,105830.0,0.64225753]
[1750790213691,0.23310796,105840.0,105830.0,0.65170637]
[1750790214111,0.23976037,105840.0,105830.0,0.63282612]
[1750790214551,0.23031251,105840.0,105830.0,0.60048379]
[1750790214773,0.23031251,105840.0,105830.0,0.78946612]
[1750790214997,0.23031251,105840.0,105830.0,0.63282612]
[1750790215541,0.23031251,105840.0,105830.0,0.44384379]
[1750790215745,0.22086447,105840.0,105830.0,0.44384379]
[1750790215946,0.22086447,105840.0,105830.0,0.11637995]
[1750790216159,0.22086447,105840.0,105830.0,0.44384379]
[1750790216385,0.47300633,105840.0,105830.0,0.11637995]
[1750790216601,0.47300633,105840.0,105830.0,0.02091]
[1750790216813,0.47300633,105840.0,105830.0,0.002]
[1750790219151,0.56300633,105840.0,105830.0,0.002]
[1750790219598,0.56300633,105840.0,105830.0,0.32946384]
[1750790220234,0.56300633,105840.0,105830.0,0.002]
[1750790230697,0.56300633,105840.0,105830.0,0.32946384]
[1750790230917,0.56300633,105840.0,105830.0,0.36241022]
[1750790231356,0.56300633,105840.0,105830.0,0.03494638]
[1750790231992,0.56300633,105840.0,105830.0,0.36241022]
[1750790232282,0.40636633,105840.0,105830.0,0.36241022]
[1750790232494,0.56300633,105840.0,105830.0,0.36241022]
[1750790233155,0.56300633,105840.0,105830.0,0.03494638]
[1750790233867,0.67300633,105840.0,105830.0,0.002]
[1750790236990,0.67300633,105840.0,105830.0,0.02091]
[1750790241358,0.67300633,105840.0,105830.0,0.34837384]
[1750790242273,0.67300633,105840.0,105830.0,0.02091]
[1750790246660,0.65686633,105840.0,105830.0,0.35073597]
[1750790246868,0.65686633,105840.0,105830.0,0.40234714]
[1750790247276,0.67246633,105840.0,105830.0,0.0748833]
[1750790247515,0.67246633,105840.0,105830.0,0.02091]
[1750790249990,0.67246633,105840.0,105830.0,0.34837384]
[1750790250422,0.67246633,105840.0,105830.0,0.02091]
[1750790255666,0.67246633,105840.0,105830.0,0.34837384]
[1750790257540,0.64102633,105840.0,105830.0,0.34837384]
[1750790257751,0.64102633,105840.0,105830.0,0.40708118]
[1750790258436,0.64102633,105840.0,105830.0,0.62686351]
[1750790258437,0.48446633,105840.0,105830.0,0.62686351]
[1750790258579,0.54552447,105840.0,105830.0,0.62686351]
[1750790259228,0.38896447,105840.0,105830.0,0.62686351]
[1750790259469,0.54552447,105840.0,105830.0,0.62686351]
[1750790260520,0.54552447,105840.0,105830.0,0.63631262]
[1750790260732,0.55497251,105840.0,105830.0,0.63631262]
[1750790260901,0.55497251,105840.0,105830.0,0.62686351]
[1750790264199,0.40786028,105840.0,105830.0,0.62686351]
[1750790264437,0.56438028,105840.0,105830.0,0.62686351]
[1750790265183,0.56438028,105840.0,105830.0,0.63631262]
[1750790265604,0.56438028,105840.0,105830.0,0.64576164]
[1750790265814,0.56438028,105840.0,105830.0,0.63631262]
[1750790266387,0.56438028,105840.0,105830.0,0.62686351]
[1750790266594,0.56438028,105840.0,105830.0,0.63631262]
[1750790267020,0.21889527,105840.0,105830.0,0.65521021]
[1750790267227,0.38486331,105840.0,105830.0,0.66465879]
[1750790267453,0.69218259,105840.0,105830.0,0.07961734]
[1750790267694,0.69218259,105840.0,105830.0,0.02091]
[1750790269012,0.69218259,105840.0,105830.0,0.002]
[1750790274466,0.53566259,105840.0,105830.0,0.002]
[1750790274679,0.69218259,105840.0,105830.0,0.32946384]
[1750790274892,0.69218259,105840.0,105830.0,0.36708304]
[1750790275517,0.53566259,105840.0,105830.0,0.36708304]
[1750790275733,0.69218259,105840.0,105830.0,0.36708304]
[1750790277190,0.69218259,105840.0,105830.0,0.38599304]
[1750790277405,0.53566259,105840.0,105830.0,0.38599304]
[1750790277617,0.67628259,105840.0,105830.0,0.38599304]
[1750790279982,0.69188259,105840.0,105830.0,0.38599304]
[1750790280481,0.69184259,105840.0,105830.0,0.38599304]
[1750790280907,0.50336259,105840.0,105830.0,0.38599304]
[1750790281109,0.50336259,105840.0,105830.0,0.60597537]
[1750790281110,0.56434073,105840.0,105830.0,0.60597537]
[1750790281974,0.55489269,105840.0,105830.0,0.41699304]
[1750790282195,0.55489269,105840.0,105830.0,0.40099304]
[1750790283302,0.55489269,105840.0,105830.0,0.38599304]
[1750790284158,0.57049269,105840.0,105830.0,0.38599304]
[1750790285868,0.68159455,105840.0,105830.0,0.0585292]
[1750790286133,0.68159455,105840.0,105830.0,0.38599304]
[1750790287185,0.66599455,105840.0,105830.0,0.38599304]
[1750790287393,0.55489269,105840.0,105830.0,0.38599304]
[1750790288081,0.57049269,105840.0,105830.0,0.38599304]
[1750790288709,0.68149455,105840.0,105830.0,0.38599304]
[1750790289462,0.68149455,105840.0,105830.0,0.0585292]
[1750790289685,0.68149455,105840.0,105830.0,0.02091]
[1750790289906,0.68149455,105840.0,105830.0,0.34837384]
[1750790290633,0.68149455,105840.0,105830.0,0.02091]
[1750790294884,0.68149455,105840.0,105830.0,0.34837384]
[1750790298686,0.50951455,105840.0,105830.0,0.34837384]
[1750790298880,0.65031455,105840.0,105830.0,0.40489199]
[1750790299295,0.68251455,105840.0,105830.0,0.40489199]
[1750790299885,0.68251455,105840.0,105830.0,0.07742815]
[1750790300024,0.68251455,105840.0,105830.0,0.40489199]
[1750790302218,0.65031455,105840.0,105830.0,0.40489199]
[1750790304140,0.30494928,105840.0,105830.0,0.26641048]
[1750790304356,0.2283426,105840.0,105830.0,0.98158442]
[1750790304570,0.43620341,105840.0,105830.0,0.63522334]
[1750790304803,0.23779198,105840.0,105830.0,0.644672]
[1750790305023,0.22834376,105840.0,105830.0,0.63522325]
[1750790305226,0.22834376,105840.0,105830.0,0.64467192]
[1750790305441,0.22834367,105840.0,105830.0,0.6541205]
[1750790305662,0.21889563,105840.0,105830.0,0.32665666]
[1750790305868,0.22834367,105840.0,105830.0,0.64467192]
[1750790306710,0.22834367,105840.0,105830.0,0.63522325]